[Event "Late-Titled-Tuesday-Blitz-July-09-2024"]
[Site "Chess.com"]
[Date "2024.07.09"]
[Round "11"]
[White "zacachess"]
[Black "LoonsDeKoeben"]
[Result "1-0"]
[WhiteElo "2495"]
[BlackElo "2420"]
[TimeControl "180+1"]
[EndTime "16:05:49 PDT"]
[Termination "zacachess won by resignation"]

1. e4 {[%clk 0:02:59]} 1... e5 {[%clk 0:02:59.2]} 2. Nc3 {[%clk 0:02:58.5]} 2...
Nf6 {[%clk 0:02:55.5]} 3. Bc4 {[%clk 0:02:58.4]} 3... Bc5 {[%clk 0:02:45.6]} 4.
f4 {[%clk 0:02:55.7]} 4... d5 {[%clk 0:02:19.8]} 5. exd5 {[%clk 0:02:54.8]} 5...
exf4 {[%clk 0:02:18.5]} 6. d4 {[%clk 0:02:43.4]} 6... Bb4 {[%clk 0:02:18.8]} 7.
Bxf4 {[%clk 0:02:31.2]} 7... Nxd5 {[%clk 0:02:17.2]} 8. Bd2 {[%clk 0:02:14]}
8... Bxc3 {[%clk 0:02:15.5]} 9. bxc3 {[%clk 0:02:10.3]} 9... Qh4+ {[%clk
0:02:09.3]} 10. g3 {[%clk 0:02:07.4]} 10... Qe7+ {[%clk 0:01:59.2]} 11. Qe2
{[%clk 0:02:06.7]} 11... Be6 {[%clk 0:01:45.5]} 12. Nf3 {[%clk 0:01:55.3]} 12...
Nxc3 {[%clk 0:01:39.8]} 13. Bxc3 {[%clk 0:01:43.3]} 13... Bxc4 {[%clk
0:01:38.9]} 14. Qxe7+ {[%clk 0:01:43.6]} 14... Kxe7 {[%clk 0:01:39.8]} 15. Kf2
{[%clk 0:01:37.9]} 15... f6 {[%clk 0:01:35.2]} 16. Nh4 {[%clk 0:01:24.6]} 16...
Nd7 {[%clk 0:01:26.8]} 17. Nf5+ {[%clk 0:01:07.1]} 17... Kf7 {[%clk 0:01:26.6]}
18. Ne3 {[%clk 0:01:04.3]} 18... Nb6 {[%clk 0:01:25.5]} 19. a4 {[%clk
0:01:00.5]} 19... Bd5 {[%clk 0:01:17.3]} 20. Rhb1 {[%clk 0:00:54.5]} 20... Rhe8
{[%clk 0:00:52]} 21. a5 {[%clk 0:00:53.2]} 21... Rxe3 {[%clk 0:00:51.3]} 22.
Kxe3 {[%clk 0:00:52.9]} 22... Nc4+ {[%clk 0:00:49.8]} 23. Kd3 {[%clk 0:00:50.6]}
23... Rb8 {[%clk 0:00:32.3]} 24. Re1 {[%clk 0:00:47.8]} 24... b5 {[%clk
0:00:30.8]} 25. Bb4 {[%clk 0:00:47.3]} 25... Kg6 {[%clk 0:00:17.2]} 26. Re7
{[%clk 0:00:47.1]} 26... a6 {[%clk 0:00:16.8]} 27. Rxc7 {[%clk 0:00:46.2]} 27...
Re8 {[%clk 0:00:14.6]} 28. Re1 {[%clk 0:00:46.4]} 28... Nb2+ {[%clk 0:00:12.3]}
29. Kd2 {[%clk 0:00:43]} 29... Nc4+ {[%clk 0:00:12.4]} 30. Kc1 {[%clk
0:00:39.6]} 30... Be4 {[%clk 0:00:05.7]} 31. Ra7 {[%clk 0:00:36.8]} 31... f5
{[%clk 0:00:03.6]} 32. Rxa6+ {[%clk 0:00:34.6]} 32... Kg5 {[%clk 0:00:04.2]} 33.
d5 {[%clk 0:00:32.6]} 33... Rc8 {[%clk 0:00:03.8]} 34. Rc6 {[%clk 0:00:32.2]}
34... Rd8 {[%clk 0:00:02.5]} 35. Rc5 {[%clk 0:00:30.3]} 35... Bxd5 {[%clk
0:00:02.6]} 36. Rxb5 {[%clk 0:00:29.7]} 36... Kg6 {[%clk 0:00:02.8]} 37. Rc5
{[%clk 0:00:27.3]} 37... Rd6 {[%clk 0:00:01.2]} 38. Rd1 {[%clk 0:00:25.7]} 38...
Ne3 {[%clk 0:00:01]} 39. Rd3 {[%clk 0:00:25.3]} 39... Re6 {[%clk 0:00:01.3]} 40.
Rcxd5 {[%clk 0:00:24.9]} 40... Nxd5 {[%clk 0:00:01.7]} 41. Rxd5 {[%clk
0:00:25.8]} 41... Re4 {[%clk 0:00:02.3]} 42. c3 {[%clk 0:00:25.5]} 42... Re1+
{[%clk 0:00:02.3]} 43. Kc2 {[%clk 0:00:25.3]} 43... Rh1 {[%clk 0:00:03.2]} 44.
Rd2 {[%clk 0:00:25]} 44... Ra1 {[%clk 0:00:04.1]} 45. Kb2 {[%clk 0:00:24.9]}
45... Re1 {[%clk 0:00:04.3]} 46. a6 {[%clk 0:00:24.4]} 46... Re7 {[%clk
0:00:04.4]} 47. Bc5 {[%clk 0:00:23.2]} 47... Rb7+ {[%clk 0:00:05.3]} 48. axb7
{[%clk 0:00:22.7]} 48... Kh5 {[%clk 0:00:06.2]} 49. b8=Q {[%clk 0:00:22.1]}
49... g6 {[%clk 0:00:07.1]} 50. Qf4 {[%clk 0:00:22.4]} 50... h6 {[%clk 0:00:08]}
51. h3 {[%clk 0:00:20.7]} 51... g5 {[%clk 0:00:07.5]} 52. g4+ {[%clk 0:00:19.7]}
52... Kh4 {[%clk 0:00:06.5]} 53. Qf2+ {[%clk 0:00:18.8]} 1-0

[Event "Late-Titled-Tuesday-Blitz-July-09-2024"]
[Site "Chess.com"]
[Date "2024.07.09"]
[Round "11"]
[White "ArchibaldCerveza29"]
[Black "LidongW"]
[Result "0-1"]
[WhiteElo "2381"]
[BlackElo "2291"]
[TimeControl "180+1"]
[EndTime "16:05:57 PDT"]
[Termination "LidongW won on time"]

1. e4 {[%clk 0:03:00.9]} 1... e6 {[%clk 0:02:57.3]} 2. d4 {[%clk 0:03:00.7]}
2... d5 {[%clk 0:02:57.3]} 3. Bd3 {[%clk 0:03:00.8]} 3... Nf6 {[%clk 0:02:57.2]}
4. e5 {[%clk 0:03:01]} 4... Nfd7 {[%clk 0:02:56.9]} 5. c3 {[%clk 0:03:01.6]}
5... c5 {[%clk 0:02:57.5]} 6. Nf3 {[%clk 0:03:01.4]} 6... Nc6 {[%clk 0:02:57.9]}
7. O-O {[%clk 0:03:01.4]} 7... Qb6 {[%clk 0:02:36.7]} 8. dxc5 {[%clk 0:03:01.2]}
8... Bxc5 {[%clk 0:02:30.7]} 9. b4 {[%clk 0:03:00.5]} 9... Be7 {[%clk
0:02:30.7]} 10. Qe2 {[%clk 0:03:01]} 10... Qc7 {[%clk 0:02:29.7]} 11. Re1 {[%clk
0:03:00.5]} 11... a6 {[%clk 0:02:28.4]} 12. Nbd2 {[%clk 0:02:56.5]} 12... g5
{[%clk 0:02:23.7]} 13. h3 {[%clk 0:02:49.7]} 13... h5 {[%clk 0:02:23]} 14. Nb3
{[%clk 0:02:43.8]} 14... g4 {[%clk 0:02:21.5]} 15. Nfd4 {[%clk 0:02:41.9]} 15...
Ncxe5 {[%clk 0:02:10.8]} 16. Bf4 {[%clk 0:02:40.2]} 16... Bd6 {[%clk 0:02:06.9]}
17. Kh1 {[%clk 0:02:16.9]} 17... gxh3 {[%clk 0:01:57.1]} 18. gxh3 {[%clk
0:02:16]} 18... Nxd3 {[%clk 0:01:57.4]} 19. Bxd6 {[%clk 0:02:15.4]} 19... Qxd6
{[%clk 0:01:58.3]} 20. Qxd3 {[%clk 0:02:15.8]} 20... Nb6 {[%clk 0:01:49.6]} 21.
Nc5 {[%clk 0:02:05.8]} 21... Nc4 {[%clk 0:01:42.1]} 22. Rad1 {[%clk 0:01:50]}
22... b6 {[%clk 0:01:29.2]} 23. Ncxe6 {[%clk 0:01:49.2]} 23... fxe6 {[%clk
0:01:20]} 24. Nf5 {[%clk 0:01:41.1]} 24... Qf8 {[%clk 0:01:16.4]} 25. Qxd5
{[%clk 0:01:39.8]} 25... Ra7 {[%clk 0:01:08.4]} 26. Rxe6+ {[%clk 0:01:03.9]}
26... Bxe6 {[%clk 0:01:08.2]} 27. Qxe6+ {[%clk 0:01:04.3]} 27... Re7 {[%clk
0:01:08.8]} 28. Qc8+ {[%clk 0:00:50.5]} 28... Kf7 {[%clk 0:01:08.1]} 29. Qxc4+
{[%clk 0:00:51.1]} 29... Kg6 {[%clk 0:00:57.8]} 30. Nh4+ {[%clk 0:00:28.6]}
30... Kh7 {[%clk 0:00:30.6]} 31. Qd3+ {[%clk 0:00:26.6]} 31... Kg8 {[%clk
0:00:27.8]} 32. Rg1+ {[%clk 0:00:24.8]} 32... Rg7 {[%clk 0:00:25.6]} 33. Qd5+
{[%clk 0:00:19.7]} 33... Qf7 {[%clk 0:00:23.2]} 34. Qd8+ {[%clk 0:00:18.1]}
34... Kh7 {[%clk 0:00:22.7]} 35. Qd3+ {[%clk 0:00:17.3]} 35... Kg8 {[%clk
0:00:17.9]} 36. Qd8+ {[%clk 0:00:16.8]} 36... Kh7 {[%clk 0:00:17.5]} 37. Qd3+
{[%clk 0:00:14.5]} 37... Kg8 {[%clk 0:00:16.4]} 38. Rxg7+ {[%clk 0:00:08.5]}
38... Kxg7 {[%clk 0:00:10.8]} 39. Qd4+ {[%clk 0:00:08.4]} 39... Qf6 {[%clk
0:00:10.1]} 40. Nf5+ {[%clk 0:00:08.1]} 40... Kf7 {[%clk 0:00:06.4]} 41. Qd7+
{[%clk 0:00:05.8]} 41... Kg6 {[%clk 0:00:06.7]} 42. Ne7+ {[%clk 0:00:03.9]}
42... Kh6 {[%clk 0:00:07.1]} 43. Nf5+ {[%clk 0:00:03.7]} 43... Kg6 {[%clk
0:00:07.2]} 44. Ne7+ {[%clk 0:00:04.3]} 44... Kh6 {[%clk 0:00:07.5]} 45. Qd2+
{[%clk 0:00:04.4]} 45... Kg7 {[%clk 0:00:07.2]} 46. Nd5 {[%clk 0:00:04.8]} 46...
Qf3+ {[%clk 0:00:06.7]} 47. Kh2 {[%clk 0:00:05.4]} 47... Rf8 {[%clk 0:00:06.7]}
48. Qg5+ {[%clk 0:00:05.5]} 48... Kh7 {[%clk 0:00:06]} 49. Qe7+ {[%clk
0:00:04.8]} 49... Rf7 {[%clk 0:00:05.8]} 50. Qd8 {[%clk 0:00:01.2]} 50... Qxf2+
{[%clk 0:00:05.3]} 51. Kh1 {[%clk 0:00:01.9]} 51... Qf1+ {[%clk 0:00:03.7]} 52.
Kh2 {[%clk 0:00:02.1]} 52... Rf2+ {[%clk 0:00:04.6]} 53. Kg3 {[%clk 0:00:02.4]}
53... Qg2+ {[%clk 0:00:04.6]} 54. Kh4 {[%clk 0:00:03]} 54... Qe4+ {[%clk
0:00:04.2]} 55. Kxh5 {[%clk 0:00:02.1]} 55... Rf5+ {[%clk 0:00:04]} 56. Qg5
{[%clk 0:00:01.5]} 56... Rxg5+ {[%clk 0:00:04.2]} 0-1

[Event "Late-Titled-Tuesday-Blitz-July-09-2024"]
[Site "Chess.com"]
[Date "2024.07.09"]
[Round "11"]
[White "pirulillo"]
[Black "GulamaliRises"]
[Result "0-1"]
[WhiteElo "2442"]
[BlackElo "2641"]
[TimeControl "180+1"]
[EndTime "16:06:09 PDT"]
[Termination "GulamaliRises won on time"]

1. e4 {[%clk 0:03:00]} 1... d6 {[%clk 0:02:52.9]} 2. d4 {[%clk 0:02:50.2]} 2...
Nf6 {[%clk 0:02:49.4]} 3. Nc3 {[%clk 0:02:49.4]} 3... g6 {[%clk 0:02:48.8]} 4.
f4 {[%clk 0:02:48.8]} 4... Bg7 {[%clk 0:02:48.6]} 5. a3 {[%clk 0:02:48.7]} 5...
O-O {[%clk 0:02:39]} 6. Nf3 {[%clk 0:02:48.1]} 6... Nc6 {[%clk 0:02:35.6]} 7. e5
{[%clk 0:02:41.4]} 7... dxe5 {[%clk 0:02:32.9]} 8. fxe5 {[%clk 0:02:40.9]} 8...
Nd5 {[%clk 0:02:30.8]} 9. Bd3 {[%clk 0:02:37.2]} 9... Bg4 {[%clk 0:02:05.4]} 10.
Be4 {[%clk 0:02:36.7]} 10... Nb6 {[%clk 0:01:53.4]} 11. Bxc6 {[%clk 0:02:28.4]}
11... bxc6 {[%clk 0:01:54.3]} 12. O-O {[%clk 0:02:25.3]} 12... c5 {[%clk
0:01:41.8]} 13. dxc5 {[%clk 0:02:07.8]} 13... Qxd1 {[%clk 0:01:42.7]} 14. Rxd1
{[%clk 0:01:55.4]} 14... Nc4 {[%clk 0:01:24.1]} 15. Rd4 {[%clk 0:01:30]} 15...
Be6 {[%clk 0:01:23.4]} 16. Re4 {[%clk 0:01:09.8]} 16... Rfd8 {[%clk 0:01:01.2]}
17. b3 {[%clk 0:01:04.6]} 17... Na5 {[%clk 0:00:55.2]} 18. Bf4 {[%clk 0:01:00]}
18... h6 {[%clk 0:00:53.9]} 19. h3 {[%clk 0:00:56.7]} 19... g5 {[%clk
0:00:53.3]} 20. Bg3 {[%clk 0:00:55.7]} 20... Rd7 {[%clk 0:00:41]} 21. Nd4 {[%clk
0:00:45]} 21... Rad8 {[%clk 0:00:35.5]} 22. Nxe6 {[%clk 0:00:44.2]} 22... fxe6
{[%clk 0:00:35.5]} 23. Re2 {[%clk 0:00:42.5]} 23... h5 {[%clk 0:00:22.1]} 24.
Rae1 {[%clk 0:00:39.1]} 24... Kh7 {[%clk 0:00:20.5]} 25. b4 {[%clk 0:00:19.7]}
25... Nc6 {[%clk 0:00:19.1]} 26. Ne4 {[%clk 0:00:16.8]} 26... Kg6 {[%clk
0:00:19.1]} 27. c3 {[%clk 0:00:16.9]} 27... a6 {[%clk 0:00:18.3]} 28. h4 {[%clk
0:00:15.8]} 28... g4 {[%clk 0:00:16.9]} 29. Nf2 {[%clk 0:00:14.3]} 29... Na7
{[%clk 0:00:15.4]} 30. a4 {[%clk 0:00:13.1]} 30... Bh6 {[%clk 0:00:14.5]} 31.
Ne4 {[%clk 0:00:12.8]} 31... Rd3 {[%clk 0:00:14.1]} 32. Kh2 {[%clk 0:00:12.6]}
32... c6 {[%clk 0:00:12.9]} 33. Rf1 {[%clk 0:00:12.7]} 33... a5 {[%clk
0:00:10.2]} 34. Bf4 {[%clk 0:00:12.9]} 34... axb4 {[%clk 0:00:09.4]} 35. Ref2
{[%clk 0:00:13]} 35... Bxf4+ {[%clk 0:00:09]} 36. Rxf4 {[%clk 0:00:13.2]} 36...
bxc3 {[%clk 0:00:09.9]} 37. Ng5 {[%clk 0:00:11.3]} 37... c2 {[%clk 0:00:08.5]}
38. Rf7 {[%clk 0:00:10.3]} 38... Rd1 {[%clk 0:00:07.2]} 39. R1f2 {[%clk
0:00:09.6]} 39... c1=Q {[%clk 0:00:07.4]} 40. Nxe6 {[%clk 0:00:09.5]} 40... Rh1+
{[%clk 0:00:06.5]} 41. Kg3 {[%clk 0:00:10.4]} 41... Rd3+ {[%clk 0:00:06.5]} 42.
R7f3 {[%clk 0:00:08.4]} 42... gxf3 {[%clk 0:00:06.6]} 43. Nf4+ {[%clk
0:00:07.9]} 43... Kg7 {[%clk 0:00:06.2]} 44. Nxd3 {[%clk 0:00:08.8]} 44... Qh6
{[%clk 0:00:03.1]} 45. Rxf3 {[%clk 0:00:08.1]} 45... Qg6+ {[%clk 0:00:04]} 46.
Kf2 {[%clk 0:00:08.2]} 46... Qe4 {[%clk 0:00:04.7]} 47. Nf4 {[%clk 0:00:07.5]}
47... Qd4+ {[%clk 0:00:05.3]} 48. Kg3 {[%clk 0:00:07.6]} 48... Qxe5 {[%clk
0:00:05.5]} 49. Kf2 {[%clk 0:00:06.7]} 49... Kh7 {[%clk 0:00:05.4]} 50. Nh3
{[%clk 0:00:06.7]} 50... Qxc5+ {[%clk 0:00:06]} 51. Kg3 {[%clk 0:00:06.9]} 51...
Rxh3+ {[%clk 0:00:06.9]} 52. Kxh3 {[%clk 0:00:05.7]} 52... Nc8 {[%clk
0:00:07.8]} 53. Rf7+ {[%clk 0:00:05.8]} 53... Kg6 {[%clk 0:00:08.3]} 54. Rf8
{[%clk 0:00:06]} 54... Nd6 {[%clk 0:00:08.8]} 55. Rg8+ {[%clk 0:00:06]} 55...
Kf7 {[%clk 0:00:09.4]} 56. Rg5 {[%clk 0:00:05.7]} 56... Qc3+ {[%clk 0:00:09.2]}
57. Kh2 {[%clk 0:00:05.4]} 57... Ne4 {[%clk 0:00:09.4]} 58. Rxh5 {[%clk
0:00:05.8]} 58... Qg3+ {[%clk 0:00:08.8]} 59. Kg1 {[%clk 0:00:05.2]} 59... Kg6
{[%clk 0:00:09]} 60. Ra5 {[%clk 0:00:04.1]} 60... Qe1+ {[%clk 0:00:08.7]} 61.
Kh2 {[%clk 0:00:04.3]} 61... Qxa5 {[%clk 0:00:09.6]} 0-1

[Event "Late-Titled-Tuesday-Blitz-July-09-2024"]
[Site "Chess.com"]
[Date "2024.07.09"]
[Round "11"]
[White "mac0504"]
[Black "Kirill_Klukin"]
[Result "1/2-1/2"]
[WhiteElo "2790"]
[BlackElo "2919"]
[TimeControl "180+1"]
[EndTime "16:06:25 PDT"]
[Termination "Game drawn by 50-move rule"]

1. c4 {[%clk 0:03:00.9]} 1... c5 {[%clk 0:02:56.7]} 2. Nc3 {[%clk 0:02:59.5]}
2... g6 {[%clk 0:02:56.5]} 3. g3 {[%clk 0:02:59.5]} 3... Bg7 {[%clk 0:02:56.2]}
4. Bg2 {[%clk 0:03:00.1]} 4... Nc6 {[%clk 0:02:56.7]} 5. Nf3 {[%clk 0:02:59.3]}
5... a6 {[%clk 0:02:55.7]} 6. O-O {[%clk 0:02:59.2]} 6... Rb8 {[%clk 0:02:56.1]}
7. a4 {[%clk 0:02:57.1]} 7... e6 {[%clk 0:02:53]} 8. e3 {[%clk 0:02:53.1]} 8...
Nge7 {[%clk 0:02:50.5]} 9. d4 {[%clk 0:02:52.8]} 9... cxd4 {[%clk 0:02:51]} 10.
Nxd4 {[%clk 0:02:52.7]} 10... O-O {[%clk 0:02:48.3]} 11. b3 {[%clk 0:02:47.8]}
11... d5 {[%clk 0:02:46.5]} 12. Ba3 {[%clk 0:02:32.9]} 12... Nxd4 {[%clk
0:02:41.5]} 13. exd4 {[%clk 0:02:32.6]} 13... dxc4 {[%clk 0:02:40.9]} 14. bxc4
{[%clk 0:02:27]} 14... Re8 {[%clk 0:02:41.1]} 15. Ne4 {[%clk 0:02:07]} 15... Nf5
{[%clk 0:02:31.5]} 16. d5 {[%clk 0:02:06.4]} 16... b5 {[%clk 0:02:18.9]} 17.
axb5 {[%clk 0:01:53.4]} 17... axb5 {[%clk 0:02:17.8]} 18. dxe6 {[%clk
0:01:34.5]} 18... Bxe6 {[%clk 0:02:15.1]} 19. cxb5 {[%clk 0:01:12.8]} 19... Bd5
{[%clk 0:01:54.1]} 20. Qxd5 {[%clk 0:00:29.5]} 20... Qxd5 {[%clk 0:01:48]} 21.
Nf6+ {[%clk 0:00:29.8]} 21... Bxf6 {[%clk 0:01:48.3]} 22. Bxd5 {[%clk
0:00:30.7]} 22... Bxa1 {[%clk 0:01:48.9]} 23. Rxa1 {[%clk 0:00:31.4]} 23... Nd4
{[%clk 0:01:38.7]} 24. Bb2 {[%clk 0:00:08.1]} 24... Rxb5 {[%clk 0:01:34.5]} 25.
Bxf7+ {[%clk 0:00:05.6]} 25... Kxf7 {[%clk 0:01:31]} 26. Bxd4 {[%clk 0:00:06.5]}
26... Re7 {[%clk 0:01:30.4]} 27. Be3 {[%clk 0:00:05]} 27... Rd7 {[%clk
0:01:27.5]} 28. h4 {[%clk 0:00:05.3]} 28... Rbd5 {[%clk 0:01:24]} 29. Kg2 {[%clk
0:00:05.6]} 29... Ke6 {[%clk 0:01:24.4]} 30. Kf3 {[%clk 0:00:06]} 30... Rf5+
{[%clk 0:01:24.4]} 31. Kg2 {[%clk 0:00:06.5]} 31... Rfd5 {[%clk 0:01:23.4]} 32.
Ra6+ {[%clk 0:00:06.8]} 32... R5d6 {[%clk 0:01:23.7]} 33. Ra8 {[%clk 0:00:07.2]}
33... Rc6 {[%clk 0:01:22.8]} 34. Re8+ {[%clk 0:00:07.7]} 34... Kd5 {[%clk
0:01:22.9]} 35. Rh8 {[%clk 0:00:07.5]} 35... Kc4 {[%clk 0:01:22.4]} 36. Bf4
{[%clk 0:00:06.7]} 36... Kd3 {[%clk 0:01:22.2]} 37. Re8 {[%clk 0:00:07.1]} 37...
Rc2 {[%clk 0:01:19.4]} 38. Re3+ {[%clk 0:00:07.1]} 38... Kc4 {[%clk 0:01:19.6]}
39. Re4+ {[%clk 0:00:05.7]} 39... Kb5 {[%clk 0:01:18]} 40. Re5+ {[%clk
0:00:06.1]} 40... Rc5 {[%clk 0:01:18.7]} 41. Re6 {[%clk 0:00:06.3]} 41... Rc6
{[%clk 0:01:12.9]} 42. Re8 {[%clk 0:00:06.6]} 42... Rc3 {[%clk 0:01:07.9]} 43.
Re5+ {[%clk 0:00:06.6]} 43... Kc4 {[%clk 0:01:08]} 44. Re4+ {[%clk 0:00:06.9]}
44... Kb3 {[%clk 0:01:08.7]} 45. Re6 {[%clk 0:00:06.5]} 45... Rcd3 {[%clk
0:01:05]} 46. Rb6+ {[%clk 0:00:06.4]} 46... Kc4 {[%clk 0:01:05.3]} 47. Rc6+
{[%clk 0:00:06.8]} 47... Kd5 {[%clk 0:01:04.4]} 48. Rc8 {[%clk 0:00:07.2]} 48...
Ke6 {[%clk 0:01:01.3]} 49. Re8+ {[%clk 0:00:07.2]} 49... Kf7 {[%clk 0:01:01]}
50. Re2 {[%clk 0:00:06.9]} 50... Re7 {[%clk 0:00:59.1]} 51. Ra2 {[%clk
0:00:06.8]} 51... Rd5 {[%clk 0:00:57.8]} 52. Be3 {[%clk 0:00:07.1]} 52... Red7
{[%clk 0:00:50.9]} 53. Bf4 {[%clk 0:00:06.8]} 53... Rb5 {[%clk 0:00:50.1]} 54.
Be3 {[%clk 0:00:07]} 54... Rdb7 {[%clk 0:00:49.8]} 55. Ra8 {[%clk 0:00:06.6]}
55... Ke6 {[%clk 0:00:49.6]} 56. Re8+ {[%clk 0:00:06.5]} 56... Re7 {[%clk
0:00:49.5]} 57. Rh8 {[%clk 0:00:06.6]} 57... Kf5 {[%clk 0:00:49.3]} 58. Rf8+
{[%clk 0:00:06.3]} 58... Ke4 {[%clk 0:00:49.6]} 59. Rf4+ {[%clk 0:00:06.6]}
59... Kd3 {[%clk 0:00:50.1]} 60. Rd4+ {[%clk 0:00:06.4]} 60... Ke2 {[%clk
0:00:50.5]} 61. Rd2+ {[%clk 0:00:06.8]} 61... Ke1 {[%clk 0:00:50.7]} 62. Ra2
{[%clk 0:00:07.2]} 62... Rd5 {[%clk 0:00:47.1]} 63. Kf3 {[%clk 0:00:07.2]} 63...
Rf7+ {[%clk 0:00:46.9]} 64. Kg2 {[%clk 0:00:07.4]} 64... Kd1 {[%clk 0:00:43.9]}
65. Bf4 {[%clk 0:00:06.9]} 65... Rfd7 {[%clk 0:00:39.6]} 66. Be3 {[%clk
0:00:07.1]} 66... Rb7 {[%clk 0:00:37.7]} 67. Kf3 {[%clk 0:00:07.1]} 67... Rf7+
{[%clk 0:00:37.2]} 68. Kg2 {[%clk 0:00:07.6]} 68... Rb5 {[%clk 0:00:37.6]} 69.
Bf4 {[%clk 0:00:07.7]} 69... Rc5 {[%clk 0:00:37.1]} 70. Be3 {[%clk 0:00:07.5]}
70... Rc2 {[%clk 0:00:37.1]} 71. Ra1+ {[%clk 0:00:06.9]} 71... Ke2 {[%clk
0:00:37.5]} 72. Bd4 {[%clk 0:00:06.4]} 72... Re7 {[%clk 0:00:31.6]} 73. Be3
{[%clk 0:00:05.6]} 73... Kd3 {[%clk 0:00:30.4]} 74. Ra3+ {[%clk 0:00:04.9]}
74... Kc4 {[%clk 0:00:27.3]} 75. Kf3 {[%clk 0:00:04.6]} 75... Rf7+ {[%clk
0:00:26.8]} 76. Kg2 {[%clk 0:00:04.9]} 76... Rc3 {[%clk 0:00:27.3]} 77. Ra2
{[%clk 0:00:04.4]} 77... Kd5 {[%clk 0:00:23.5]} 78. Rd2+ {[%clk 0:00:04]}
1/2-1/2

[Event "Late-Titled-Tuesday-Blitz-July-09-2024"]
[Site "Chess.com"]
[Date "2024.07.09"]
[Round "11"]
[White "Zhigalko_Sergei"]
[Black "Individoom"]
[Result "1-0"]
[WhiteElo "2914"]
[BlackElo "2757"]
[TimeControl "180+1"]
[EndTime "16:06:25 PDT"]
[Termination "Zhigalko_Sergei won on time"]

1. e4 {[%clk 0:03:00.9]} 1... e6 {[%clk 0:02:58.8]} 2. d4 {[%clk 0:03:01.1]}
2... d5 {[%clk 0:02:58.7]} 3. Nd2 {[%clk 0:03:01.7]} 3... dxe4 {[%clk
0:02:58.5]} 4. Nxe4 {[%clk 0:03:01.7]} 4... Bd7 {[%clk 0:02:59]} 5. Nf3 {[%clk
0:03:00.9]} 5... Bc6 {[%clk 0:02:59.2]} 6. Bd3 {[%clk 0:03:01.5]} 6... Nd7
{[%clk 0:02:59.6]} 7. O-O {[%clk 0:03:00.2]} 7... Ngf6 {[%clk 0:02:59.9]} 8. Ng3
{[%clk 0:02:58.6]} 8... g6 {[%clk 0:02:59]} 9. b3 {[%clk 0:02:52.7]} 9... Bg7
{[%clk 0:02:58.1]} 10. Ba3 {[%clk 0:02:52.7]} 10... Bf8 {[%clk 0:02:58]} 11. Bb2
{[%clk 0:02:52.9]} 11... Bg7 {[%clk 0:02:58.3]} 12. Nd2 {[%clk 0:02:25.4]} 12...
O-O {[%clk 0:02:53.6]} 13. Re1 {[%clk 0:02:25.7]} 13... b6 {[%clk 0:02:50.6]}
14. c4 {[%clk 0:02:00.6]} 14... Bb7 {[%clk 0:02:45.8]} 15. Be2 {[%clk 0:01:24]}
15... c5 {[%clk 0:02:38.6]} 16. Bf3 {[%clk 0:01:24]} 16... Bxf3 {[%clk
0:02:37.8]} 17. Nxf3 {[%clk 0:01:23.6]} 17... cxd4 {[%clk 0:02:30.5]} 18. Bxd4
{[%clk 0:01:24.5]} 18... Qc7 {[%clk 0:02:25.7]} 19. Qe2 {[%clk 0:01:24.6]} 19...
Rad8 {[%clk 0:02:23.3]} 20. Rad1 {[%clk 0:01:23.6]} 20... Nc5 {[%clk 0:02:21]}
21. h3 {[%clk 0:01:23.4]} 21... Rfe8 {[%clk 0:01:57.1]} 22. Qb2 {[%clk
0:01:22.5]} 22... Qe7 {[%clk 0:01:46.3]} 23. b4 {[%clk 0:01:18.1]} 23... Ncd7
{[%clk 0:01:36.7]} 24. a3 {[%clk 0:01:01.4]} 24... Rc8 {[%clk 0:01:35.9]} 25.
Rc1 {[%clk 0:00:46.4]} 25... Red8 {[%clk 0:01:35.5]} 26. Ne4 {[%clk 0:00:41.9]}
26... Nxe4 {[%clk 0:00:57.3]} 27. Bxg7 {[%clk 0:00:38.8]} 27... Nd6 {[%clk
0:00:57.4]} 28. Bh6 {[%clk 0:00:32.1]} 28... f6 {[%clk 0:00:56.9]} 29. Qe2
{[%clk 0:00:10.2]} 29... e5 {[%clk 0:00:52.7]} 30. Be3 {[%clk 0:00:07.1]} 30...
Nf5 {[%clk 0:00:50.1]} 31. Nd2 {[%clk 0:00:05.3]} 31... Nf8 {[%clk 0:00:48.8]}
32. c5 {[%clk 0:00:03.8]} 32... Nxe3 {[%clk 0:00:41.6]} 33. Qxe3 {[%clk
0:00:04.7]} 33... bxc5 {[%clk 0:00:41.4]} 34. bxc5 {[%clk 0:00:05.6]} 34... Ne6
{[%clk 0:00:41.1]} 35. Ne4 {[%clk 0:00:06.2]} 35... Kg7 {[%clk 0:00:30.9]} 36.
g3 {[%clk 0:00:01.7]} 36... Rc7 {[%clk 0:00:30.5]} 37. h4 {[%clk 0:00:01.7]}
37... Rd5 {[%clk 0:00:29.3]} 38. Red1 {[%clk 0:00:01.7]} 38... Rxd1+ {[%clk
0:00:22.6]} 39. Rxd1 {[%clk 0:00:02.6]} 39... Nxc5 {[%clk 0:00:22.6]} 40. Nc3
{[%clk 0:00:03.2]} 40... Rd7 {[%clk 0:00:20.2]} 41. Rxd7 {[%clk 0:00:03.5]}
41... Nxd7 {[%clk 0:00:20]} 42. Qxa7 {[%clk 0:00:04.4]} 42... Kf7 {[%clk
0:00:19]} 43. Ne4 {[%clk 0:00:04.2]} 43... h6 {[%clk 0:00:14.4]} 44. a4 {[%clk
0:00:04.3]} 44... f5 {[%clk 0:00:14.4]} 45. Nc3 {[%clk 0:00:04]} 45... Nc5
{[%clk 0:00:14.2]} 46. Qxe7+ {[%clk 0:00:03.4]} 46... Kxe7 {[%clk 0:00:14.1]}
47. a5 {[%clk 0:00:04.3]} 47... Kd6 {[%clk 0:00:13.8]} 48. f3 {[%clk 0:00:04]}
48... Kc6 {[%clk 0:00:13.1]} 49. Kf2 {[%clk 0:00:03.8]} 49... Nb3 {[%clk
0:00:12.3]} 50. a6 {[%clk 0:00:03.4]} 50... Kb6 {[%clk 0:00:12.6]} 51. Nd5+
{[%clk 0:00:03.6]} 51... Kxa6 {[%clk 0:00:12.2]} 52. Ne7 {[%clk 0:00:04.5]}
52... g5 {[%clk 0:00:12.2]} 53. h5 {[%clk 0:00:04]} 53... Nd4 {[%clk 0:00:11.5]}
54. Ng8 {[%clk 0:00:03.6]} 54... e4 {[%clk 0:00:03.4]} 55. fxe4 {[%clk
0:00:03.3]} 55... fxe4 {[%clk 0:00:03.6]} 56. Nxh6 {[%clk 0:00:04]} 56... Ne6
{[%clk 0:00:03.4]} 57. Ng4 {[%clk 0:00:03.4]} 57... Kb5 {[%clk 0:00:02.9]} 58.
Ke3 {[%clk 0:00:02.9]} 58... Ng7 {[%clk 0:00:01.4]} 59. h6 {[%clk 0:00:02.7]}
59... Nf5+ {[%clk 0:00:01.7]} 60. Kxe4 {[%clk 0:00:03.3]} 60... Nxg3+ {[%clk
0:00:02]} 61. Ke5 {[%clk 0:00:03.9]} 61... Nh5 {[%clk 0:00:01.3]} 62. h7 {[%clk
0:00:04]} 62... Nf4 {[%clk 0:00:01.7]} 63. Kf6 {[%clk 0:00:03.8]} 63... Nd5+
{[%clk 0:00:01.1]} 64. Kf7 {[%clk 0:00:04.2]} 1-0